Cogmind - Beta 10.1 @@@ ROGUE MODE // 2020.10.29 @ 02:01:07 Player: Atherys Result: Destroyed by G-47 Trooper with Particle Gun Performance ------------- Evolutions (0) 0 Regions Visited (1) 200 Robots Destroyed (10) 50 Value Destroyed (219) 219 Prototype IDs (0) 0 Alien Tech Used (0) 0 Bonus (0) 0 TOTAL SCORE: 469 Bonus ------- None Cogmind --------- Core Integrity 0/250 Matter 265/300 Energy 100/100 System Corruption 1% Temperature Cool (9) Movement Core (150) Ox2 Location -10/Materials Parts ------- > --- POWER (1) -------- (None) > --- PROPULSION (2) --- (None) > --- UTILITY (2) ------ Medium Storage Unit Armor Integrity Analyzer > --- WEAPON (2) ------- (None) > --- INVENTORY (8) ---- Light Treads Medium Storage Unit Weight Redist. System Improved Signal Interpreter Improved Signal Interpreter Transport Network Coupler Peak State ------------ > --- POWER ------------ Light Ion Engine > --- PROPULSION ------- Light Treads Light Treads > --- UTILITY ---------- Medium Storage Unit Sensor Array > --- WEAPON ----------- Light Assault Rifle Light Assault Rifle > --- INVENTORY -------- Light Treads Weight Redist. System Improved Signal Interpreter Improved Signal Interpreter Armor Integrity Analyzer Assault Rifle [Rating: 8] Favorites ----------- Power Light Ion Engine Engine Light Ion Engine Propulsion Light Treads Treads Light Treads Utility Sensor Array Device Sensor Array Storage Medium Storage Unit Processor Armor Integrity Analyzer Weapon Light Assault Rifle Ballistic Gun Light Assault Rifle Build | -11 -10 ------- Run | Scr Mat Slots Evolved . | . . Power . | . . Propulsion . | . . Utility . | . . Weapon . | . . Parts Attached 11 | 6 5 Power 1 | 1 . Engine 1 | 1 . Core . | . . Reactor . | . . Propulsion 2 | 2 . Treads 2 | 2 . Leg . | . . Wheel . | . . Hover . | . . Flight . | . . Utility 4 | 1 3 Device 1 | . 1 Storage 2 | 1 1 Processor 1 | . 1 Hackware . | . . Protection . | . . Artifact . | . . Weapon 4 | 2 2 Energy Gun . | . . Energy Cannon . | . . Ballistic Gun 4 | 2 2 Ballistic Cannon . | . . Launcher . | . . Special Weapon . | . . Impact Weapon . | . . Slashing Weapon . | . . Piercing Weapon . | . . Special Melee Weapon . | . . Unidentified Prototypes . | . . Parts Lost 6 | . 6 Power 1 | . 1 Propulsion 2 | . 2 Utility 1 | . 1 Weapon 2 | . 2 Highest Loss Streak 6 | . 6 Average Slot Usage (%) 95 | . 95 Engine 13 | . 13 Treads 26 | . 26 Device 12 | . 12 Storage 14 | . 14 Processor 1 | . 1 Ballistic Gun 26 | . 26 Naked Turns . | . . Heaviest Build 16 | 9 16 Greatest Support 40 | 40 40 Greatest Overweight (x) 2 | . 2 Average Overweight (x) . | . . Largest Inventory Capacity 8 | 6 8 Average Capacity 6 | 4 7 Most Carried 8 | 1 8 Average Carried 4 | . 4 Final Capacity 8 | 6 8 Final Carried 6 | 1 6 Class Distribution -------------------- 100% | Mutant Dominant Class ---------------- Mutant | -10/Materials Resources | -11 -10 ----------- Run | Scr Mat Matter Collected 366 | 215 151 Remotely . | . . Salvage Created 356 | . 356 Parts 19 | . 19 Haulers Intercepted 1 | . 1 Recyclers Shooed . | . . Parts Field Recycled . | . . Retrieved Matter . | . . Parts Self-Destructed . | . . Prevented . | . . Kills | -11 -10 ------- Run | Scr Mat Combat Hostiles Destroyed 4 | . 4 Guns 4 | . 4 Classes Destroyed 6 | . 6 Worker 1 | . 1 Hauler 1 | . 1 Recycler 1 | . 1 Operator 1 | . 1 Watcher 2 | . 2 Grunt 4 | . 4 Best Kill Streak 4 | . 4 Combat Bots Only 1 | . 1 Max Kills in Single Turn 1 | . 1 Gunslinging . | . . Exploded . | . . Melee . | . . Uniques/NPCs Destroyed . | . . Combat | -11 -10 -------- Run | Scr Mat Damage Taken 991 | . 991 Core 256 | . 256 Absorbed by Shields . | . . Core Remaining (%) 100 | 100 . Volleys Fired 53 | . 53 Largest 2 | . 2 Hottest 40 | . 40 Shots Fired 99 | . 99 Gun 99 | . 99 Cannon . | . . Launcher . | . . Special . | . . Kinetic 99 | . 99 Thermal . | . . Explosive . | . . Electromagnetic . | . . Robot Hit Streak 11 | . 11 Robot Miss Streak 5 | . 5 Penetration Max . | . . Secondary Targets . | . . Shots Hit Robots 67 | . 67 Core Hits 28 | . 28 Critical Hits . | . . Critical Kills . | . . Critical Parts Destroyed . | . . Melee Attacks . | . . Impact . | . . Slashing . | . . Piercing . | . . Sneak Attacks . | . . Combat Hostiles . | . . Follow-up Attacks . | . . Damage Inflicted 705 | . 705 Guns 689 | . 689 Cannons . | . . Explosions . | . . Melee . | . . Ramming 16 | . 16 Kinetic 689 | . 689 Thermal . | . . Explosive . | . . Electromagnetic . | . . Impact . | . . Slashing . | . . Piercing . | . . Highest Corruption 1 | . 1 Average Corruption 1 | . 1 Corruption Purged . | . . Overload Shots . | . . Overflow Damage . | . . Projectiles . | . . Explosions . | . . Melee . | . . Knockbacks . | . . Impact . | . . Kinetic . | . . Secondary . | . . Self-Inflicted Damage 5 | . 5 Shots . | . . Rammed 13 | . 13 Targets Rammed 13 | . 13 Kicked . | . . Crushed . | . . Highest Temperature 35 | . 35 Average Temperature 15 | . 15 Received Heat Transfer 570 | . 570 Siege Activations . | . . Robots Corrupted . | . . Combat Hostiles . | . . Parts Fried . | . . Impact Corruptions . | . . Robots Melted . | . . Combat Hostiles . | . . Parts Melted . | . . Heat Transferred . | . . Parts Sabotaged . | . . Parts Stolen . | . . Parts Stripped . | . . Power Chain Reactions . | . . Missiles Intercepted . | . . Alert | -11 -10 ------- Run | Scr Mat Peak Influence 101 | . 101 Initial . | . . Average 33 | . 37 Maximum Alert Level . | . . Low Security (%) 100 | 100 100 Level 1 . | . . Level 2 . | . . Level 3 . | . . Level 4 . | . . Level 5 . | . . High Security . | . . Max Security . | . . Squads Dispatched . | . . Investigation . | . . Extermination . | . . Reinforcement . | . . Assault . | . . Garrison . | . . Intercept . | . . Construction Impeded . | . . Haulers Reinforced . | . . Stealth | -11 -10 --------- Run | Scr Mat Distress Signals 1 | . 1 Communications Jammed . | . . Distress Signals . | . . Times Spotted 11 | . 11 Peak Tracking Total 4 | . 4 Tactical Retreats 1 | . 1 Traps | -11 -10 ------- Run | Scr Mat Traps Triggered . | . . Indirectly . | . . Trap Hack Attempts . | . . Triggered . | . . Disarmed . | . . Reprogrammed . | . . Reused . | . . Traps Extracted . | . . Installed . | . . Triggered . | . . Machines | -11 -10 ---------- Run | Scr Mat Machines Disabled . | . . Max in Single Turn . | . . Machines Sabotaged . | . . Garrisons Compromised . | . . Overloaded Fab Kills . | . . Fab Network Shutdowns . | . . Hacking | -11 -10 --------- Run | Scr Mat Machines Accessed . | . . Terminals . | . . Fabricators . | . . Repair Stations . | . . Recycling Units . | . . Scanalyzers . | . . Garrison Access . | . . Total Hacks . | . . Successful . | . . Failed . | . . Catastrophic . | . . Database Lockouts . | . . Manual . | . . Terminals . | . . Fabricators . | . . Repair Stations . | . . Recycling Units . | . . Scanalyzers . | . . Garrison Access . | . . Terminal Hacks . | . . Fabricator Hacks . | . . Repair Station Hacks . | . . Recycling Unit Hacks . | . . Scanalyzer . | . . Garrison Access Hacks . | . . Unauthorized Hacks . | . . Terminals . | . . Fabricators . | . . Repair Stations . | . . Recycling Units . | . . Scanalyzers . | . . Garrison Access . | . . Data Cores Recovered . | . . Used . | . . Hacking Detections . | . . Full Trace Events . | . . Feedback Events . | . . Feedback Blocked . | . . Robot Schematics Acquired . | . . Robots Built . | . . Matter . | . . Time . | . . Total Robot Build Rating . | . . Part Schematics Acquired . | . . Parts Built . | . . Matter . | . . Time . | . . Total Part Build Rating . | . . Parts Repaired . | . . Time . | . . Parts Recycled . | . . Recycled Matter . | . . Retrieved Matter . | . . Retrieved Components . | . . Parts Scanalyzed . | . . Part Schematics Acquired . | . . Parts Damaged . | . . Bothacking | -11 -10 ------------ Run | Scr Mat Used RIF Installer . | . . Robots Hacked . | . . Non-combat . | . . Combat . | . . Robot Hacks Applied . | . . Relay Couplers Released . | . . Robots Rewired . | . . Allies Hacked . | . . Hacks Repelled . | . . Allies | -11 -10 -------- Run | Scr Mat Total Allies . | . . Largest Group . | . . Highest-Rated Group . | . . Highest-Rated Ally . | . . Total Orders . | . . Ally Attacks . | . . Total Damage . | . . Kills . | . . Allies Corrupted . | . . Allies Melted . | . . Intel | -11 -10 ------- Run | Scr Mat Robot Analysis Total . | . . Derelict Logs Recovered . | . . Drone Launches . | . . Drone Recoveries . | . . Exploration | -11 -10 ------------- Run | Scr Mat Turns Passed 794 | 81 713 Spaces Moved 381 | 49 332 Core 12 | 6 6 Treads 369 | 43 326 Legs . | . . Wheels . | . . Hover . | . . Flight . | . . Fastest Speed 50 | 50 150 Average Speed 158 | 146 159 Slowest Speed 160 | 160 160 Overloaded Moves . | . . Propulsion Burnouts . | . . Robots Hopped . | . . Cave-ins Triggered . | . . Exploration Rate (%) 26 | 4 49 Regions Visited 1 Branch Regions . Pre-discovered Areas . | . . Known Exits Taken . | . . Unknown Exits Taken 1 | 1 . Scrap Searched . | . . Spaces Dug . | . . Terrain Destroyed . | . . Melee . | . . Projectile . | . . AOE . | . . Terrain Rammed . | . . Walls Destroyed . | . . Machines Disabled . | . . Actions | -11 -10 --------- Run | Scr Mat Total 477 | 55 422 Wait 8 | . 8 Move 380 | 48 332 Hop . | . . Pick Up 9 | 1 8 Fast Attach 7 | 6 1 Attach 3 | . 3 Detach . | . . Swap 1 | . 1 Drop 3 | . 3 Fire 53 | . 53 Melee . | . . Ram 13 | . 13 Kick . | . . Crush . | . . Escape Stasis . | . . Rewire . | . . Trap . | . . Miscellaneous . | . . Route ------- -11/Scrapyard -10/Materials (discovered 1 exit: [*Mat]) History --------- Turn | Location | Event 15 | -11/Scrapyard | Discovered new exit (range 16) 82 | -11/Scrapyard | Entered Materials 254 | -10/Materials | Discovered new exit (range 8) 303 | -10/Materials | Build established: Mutant 776 | -10/Materials | Core integrity fell below 50% 788 | -10/Materials | Core integrity fell below 20% 795 | -10/Materials | Destroyed by G-47 Trooper with Particle Gun Last Messages --------------- 00765_ K-01 Serf collects debris. 00769_ Slammed into G-47 Trooper. 00769_ K-01 Serf cleans the Terminal. 00771_ Slammed into G-47 Trooper. 00772_ K-01 Serf collects debris. 00772_ Slammed into G-47 Trooper. 00772_ Destabilizing: Core damaged (-7). 00773_ K-01 Serf destroyed. 00773_ K-01 Serf collects debris. 00774_ Slammed into G-47 Trooper. 00775_ Destabilizing: System corrupted (+1). 00777_ Slammed into G-47 Trooper. 00777_ K-01 Serf collects debris. 00778_ Slammed into G-47 Trooper. 00782_ K-01 Serf collects debris. 00783_ Slammed into G-47 Trooper. 00785_ K-01 Serf collects debris. 00786_ Slammed into G-47 Trooper. 00788_ K-01 Serf cleans the Neutrino Reactor. 00791_ K-01 Serf collects debris. Map ----- +----------------------------------------------------+ | | | | | ?????????????????????????????????????????????????? | | ?????????????????????????????????????????????????? | | ?????????????????????????????????????????????????? | | ?????????????????????????????????????????????????? | | ?????????????????????????????????????????????????? | | ?????????????????????????????????????????????????? | | ?????????????????????????????????????????????????? | | ?????????????????????????????????????????????????? | | ?????????????????????????????????????????????????? | | ?????????????????????????????????????????????????? | | ?????????????????????????????????????????????????? | | ??????????###????# ????????????????????????????? | | ??????????# ??? ????????????????????????????? | | ??????????# ??? ????????????????????#???????? | | ??????????#^ """" ??????????????????? #???????? | | ??????????# """" #?????????????????? #???????? | | ??????##### """" #??????????????#?? #???????? | | ??????? #????????????? #?# ##??????? | | ???????? [ ##############+## #??????? | | ????????? [ *%= #??????? | | ??????????# u [%* *=%%! +??????? | | ??????????# """ """ /!!! =%!!""" ????????? | | ??????????# """ """ !!! %%$""" #??????? | | ??????????# """ """ @ !! %==k """ #??????? | | ??????????# g #??????? | | ??????????# #??????? | | ??###?????# #??????? | | ??? # u #??????? | | ??? # ##########+####### T #??????? | | ????[ # #??????? ??????? #??????? | | ??? """ # #?????? ???????? #????? | | ? ?!! """ # #????? [[ ???????? #????? | | # !! """ # #???? [[ ?????? +????? | | # + #### [[ ????? ###### ?????? | | # # + ????? #?????? ?????? | | #######+### #######??????????? #?????????????? | | ##### #+#+#########?????????? #?????????????? | | # #?????????? ?????????????? | | + """ """ #?????????? ?????????????? | | # """ """ #?????????? ?????????????? | | ##### # """ """ #??????????????????????????? | | ????## ## #??????????????????????????? | | ?????# ##! #??????????????????????????? | | ?????# ## #??????????????????????????? | | ###### ######/############?????????????????????? | | ! ## # [#?????????????????????? | | ##### # [ #?????????????????????? | | T #???# + #?????????????????????? | +----------------------------------------------------+ Best States ------------- Heat Dissipation 25 Energy Generation 10 Energy Capacity 125 Matter Stores 300 Matter Capacity 300 Sight Range 16 Robot Scan Range 10 Terrain Scan Density 10 Evasion (%) 40 Armor Integrity Analysis 33 Recoil Reduction 2 Item Schematics ----------------- None Robot Schematics ------------------ None Fabricated ------------ Nothing Alien Tech Used ----------------- None Achievements -------------- None Challenges ------------ None Game ------ Seed MyomerAluminumArray Manual? 0 Play Time 00:09:13 Cumulative 15.4 hours Start 2020.10.29 @ 01:54:33 End 2020.10.29 @ 02:01:07 Sessions 1 Manual Loads 0 Difficulty Rogue Special Mode None Game No. 25 Rogue 25 Adventurer 0 Explorer 0 Win Type - Total 0 Types 0/0/0/0/0/0/0/0/0 Lore% 19 Gallery% 21 Achievement% 18 Wizard Run 0 Options --------- ASCII 0 Keyboard 0 Movement Mouse Keybinds 0 Fullscreen 2 Font 18/SmallcapsGlow Map View 76x50 Tactical HUD 1 Map Filters NONE Filters NONE Steam X RUN: 6208453a-4355-4e5b-b895-f90087407071